Cogmind - Beta 13 @@@ ROGUE MODE // 2024.07.16 @ 12:01:35 Player: celerysam Result: Destroyed by B-75 Beast with Heavy Machine Gun Performance ------------- Evolutions (5) 2500 Regions Visited (8) 1600 Robots Destroyed (22) 110 Value Destroyed (455) 455 Prototype IDs (3) 60 Alien Tech Used (0) 0 Bonus (500) 500 TOTAL SCORE: 5225 Bonus ------- Entered DSFs 500 Cogmind --------- Core Integrity 0/1000 Matter 137/300 Energy 95/100 System Corruption 7% Temperature Cool (12) Movement Core (50) Location -5/Extension Parts ------- > --- POWER (3) -------- (None) > --- PROPULSION (8) --- (None) > --- UTILITY (4) ------ (None) > --- WEAPON (2) ------- (None) > --- INVENTORY (5) ---- Light Nuclear Core Cooling System Energy Well (340) Improved Light Armor Plating Peak State ------------ > --- POWER ------------ Improved Deuterium Engine Fission Core > --- PROPULSION ------- Improved Flight Unit Surge Thruster Surge Thruster Xenon Bombardment Thruster Xenon Bombardment Thruster Xenon Bombardment Thruster Xenon Bombardment Thruster > --- UTILITY ---------- Cooling System Coolant Injector Small Storage Unit Reaction Control System > --- WEAPON ----------- Arc Projector Mini Assault Cannon > --- INVENTORY -------- Light Ion Engine Light Nuclear Core Cesium-ion Thruster Cryofiber Web Energy Well ECM Suite High-powered Shotgun Gauss Rifle [Rating: 55] Favorites ----------- Power Ion Engine Engine Ion Engine Power Core Light Nuclear Core Propulsion Aluminum Leg Leg Aluminum Leg Wheel Wheel Hover Unit Antigrav System Flight Unit Improved Flight Unit Utility Small Storage Unit Device Heat Sink Storage Small Storage Unit Hackware Hacking Suite Weapon Medium Laser Energy Gun Medium Laser Ballistic Gun Heavy Assault Rifle Ballistic Cannon Mini Assault Cannon Build | -11 -10 -9 -8 -7 -7 -6 -5 -5 ------- Run | Yrd Mat Mat Mat Fac DSF Fac Fac Ext Slots Evolved 10 | . . 2 2 2 . 2 2 . Power 2 | . . . 1 . . . 1 . Propulsion 6 | . . 2 . 2 . 1 1 . Utility 2 | . . . 1 . . 1 . . Weapon . | . . . . . . . . . Parts Attached 78 | 7 7 6 7 11 12 16 9 3 Power 17 | 2 1 . 1 4 2 3 3 1 Engine 10 | 2 1 . . 2 2 1 1 1 Core 7 | . . . 1 2 . 2 2 . Reactor . | . . . . . . . . . Propulsion 30 | 2 4 4 1 2 9 5 2 1 Treads . | . . . . . . . . . Leg 5 | 2 3 . . . . . . . Wheel 1 | . . . . . . 1 . . Hover 1 | . . . . . . . 1 . Flight 23 | . 1 4 1 2 9 4 1 1 Utility 16 | 1 1 . 2 3 . 5 3 1 Device 12 | . 1 . 1 2 . 5 2 1 Storage 3 | 1 . . . 1 . . 1 . Processor . | . . . . . . . . . Hackware 1 | . . . 1 . . . . . Protection . | . . . . . . . . . Artifact . | . . . . . . . . . Weapon 15 | 2 1 2 3 2 1 3 1 . Energy Gun 4 | 1 . 1 . 1 1 . . . Energy Cannon . | . . . . . . . . . Ballistic Gun 10 | 1 1 1 3 . . 3 1 . Ballistic Cannon 1 | . . . . 1 . . . . Launcher . | . . . . . . . . . Special Weapon . | . . . . . . . . . Impact Weapon . | . . . . . . . . . Slashing Weapon . | . . . . . . . . . Piercing Weapon . | . . . . . . . . . Special Melee Weapon . | . . . . . . . . . Unidentified Prototypes 3 | . 1 . 1 1 . . . . Corrupted Parts 1 | . . . . . . . 1 . System Corruption 6 | . . . . . . . 6 . Parts Lost 21 | . . . . . . 15 1 5 Power 2 | . . . . . . 1 . 1 Propulsion 11 | . . . . . . 9 . 2 Utility 4 | . . . . . . 2 . 2 Weapon 4 | . . . . . . 3 1 . Highest Loss Streak 14 | . . . . . . 14 1 5 To Critical Strikes . | . . . . . . . . . Average Slot Usage (%) 72 | . 96 100 89 100 100 61 7 22 Engine 6 | . 14 11 2 1 1 . . 4 Core 3 | . . . 6 13 13 6 . . Leg 9 | . 27 1 . . . . . . Flight 16 | . . 42 35 46 46 27 2 . Device 10 | . 11 11 9 15 15 13 1 9 Storage 8 | . 14 11 9 4 7 4 . . Energy Gun 7 | . 14 11 9 7 7 1 . . Ballistic Gun 6 | . 14 11 9 1 . . . . Ballistic Cannon 1 | . . . . 6 7 4 . . Naked Turns 133 | . . . . . . 34 96 3 Heaviest Build 32 | 14 16 17 17 25 31 32 11 12 Greatest Support 37 | 20 20 18 18 27 32 37 11 11 Greatest Overweight (x) 4 | 3 4 . . . 1 3 . 3 Average Overweight (x) . | . . . . . . . . . Largest Inventory Capacity 8 | 8 8 8 8 8 8 8 5 5 Average Capacity 7 | 7 8 8 8 7 8 7 5 5 Most Carried 8 | 8 8 8 8 8 8 8 5 5 Average Carried 6 | 5 7 7 7 6 7 7 4 4 Final Capacity 8 | 8 8 8 8 8 8 5 5 5 Final Carried 8 | 6 8 8 8 8 8 5 3 4 Class Distribution -------------------- 59% | Mutant 35% | Sprinter 5% | Infiltrator-Mutant Dominant Class ---------------- Mutant | -10/Materials Sprinter | -9/Materials Sprinter | -8/Materials Sprinter | -7/Factory Sprinter | -7/DSF Sprinter | -6/Factory Mutant | -5/Factory Infiltrator-Mutant | -5/Extension Resources | -11 -10 -9 -8 -7 -7 -6 -5 -5 ----------- Run | Yrd Mat Mat Mat Fac DSF Fac Fac Ext Matter Collected 820 | 249 132 106 104 . 56 25 142 6 Remotely . | . . . . . . . . . Salvage Created 547 | . 186 119 117 . 65 30 30 . Parts 47 | . 20 6 11 . 5 2 3 . Haulers Intercepted . | . . . . . . . . . Recyclers Shooed . | . . . . . . . . . Parts Field Recycled . | . . . . . . . . . Retrieved Matter . | . . . . . . . . . Parts Self-Destructed . | . . . . . . . . . Prevented . | . . . . . . . . . Kills | -11 -10 -9 -8 -7 -7 -6 -5 -5 ------- Run | Yrd Mat Mat Mat Fac DSF Fac Fac Ext Combat Hostiles Destroyed 21 | . 8 4 5 . 2 1 1 . Melee 1 | . . . . . . . 1 . Guns 19 | . 8 4 5 . 1 1 . . Cannons 1 | . . . . . 1 . . . Classes Destroyed 5 | . 3 1 . . 1 . . . Watcher 1 | . 1 . . . . . . . Swarmer 13 | . 6 2 3 . . 1 1 . Cutter 2 | . . . . . 2 . . . Grunt 5 | . 2 1 2 . . . . . Sentry 1 | . . 1 . . . . . . Best Kill Streak 5 | . 3 2 5 . 2 1 1 . Combat Bots Only 5 | . 3 2 5 . 2 1 1 . Max Kills in Single Turn 2 | . 1 1 2 . 1 1 1 . Gunslinging 1 | . . . 1 . . . . . Exploded . | . . . . . . . . . Melee 1 | . . . . . . . 1 . Uniques/NPCs Destroyed . | . . . . . . . . . Combat | -11 -10 -9 -8 -7 -7 -6 -5 -5 -------- Run | Yrd Mat Mat Mat Fac DSF Fac Fac Ext Hostile Shots Fired 415 | . 31 21 20 . 6 262 45 30 Missed 172 | . 9 9 9 . 2 115 20 8 Damage Taken 3804 | . 184 141 171 . 121 1866 723 598 Core 1946 | . 24 59 38 . . 822 625 378 Absorbed by Shields 5 | . . . . . . 5 . . Regen/Repaired (Parts) 21 | . . . 21 . . . . . Core Remaining (%) 78 | 100 90 85 93 . 100 3 . . Volleys Fired 56 | . 17 11 9 . 3 13 3 . Largest 2 | . 2 2 2 . 2 2 1 . Hottest 103 | . 73 88 88 . 103 103 23 . Shots Fired 95 | . 34 20 18 . 6 14 3 . Gun 87 | . 34 20 18 . 3 9 3 . Cannon 8 | . . . . . 3 5 . . Launcher . | . . . . . . . . . Special . | . . . . . . . . . Kinetic 53 | . 17 11 9 . 3 10 3 . Thermal 35 | . 17 9 9 . . . . . Explosive . | . . . . . . . . . Electromagnetic 7 | . . . . . 3 4 . . Robot Hit Streak 8 | . 7 2 8 . 2 4 1 . Robot Miss Streak 4 | . 4 2 1 . 2 2 3 . Penetration Max 1 | . . . . . . 1 . . Secondary Targets 2 | . . 1 1 . . . . . Max Gunslinging Chain 1 | . . 1 1 . . . . . Shots Hit Robots 56 | . 21 8 14 . 3 9 1 . Core Hits 33 | . 10 5 7 . 2 4 5 . Critical Kills . | . . . . . . . . . Critical Parts Destroyed 1 | . . 1 . . . . . . Critical Strikes 2 | . 1 1 . . . . . . Burn 1 | . 1 . . . . . . . Destroy 1 | . . 1 . . . . . . Melee Attacks . | . . . . . . . . . Impact . | . . . . . . . . . Slashing . | . . . . . . . . . Piercing . | . . . . . . . . . Sneak Attacks . | . . . . . . . . . Combat Hostiles . | . . . . . . . . . Follow-up Attacks . | . . . . . . . . . Damage Inflicted 1054 | . 288 137 239 . 46 230 114 . Guns 819 | . 288 137 239 . 21 116 18 . Cannons 124 | . . . . . 25 99 . . Explosions . | . . . . . . . . . Melee . | . . . . . . . . . Ramming 111 | . . . . . . 15 96 . Kinetic 507 | . 165 15 104 . 25 180 18 . Thermal 380 | . 123 122 135 . . . . . Explosive . | . . . . . . . . . Electromagnetic 56 | . . . . . 21 35 . . Impact . | . . . . . . . . . Slashing . | . . . . . . . . . Piercing . | . . . . . . . . . Highest Corruption 7 | . . 1 . . . . 7 7 Average Corruption 4 | . . 1 . . . . 4 7 Corruption Purged . | . . . . . . . . . Corruption Blocked . | . . . . . . . . . Effects 8 | . . 2 . . . . 3 3 Message Errors 2 | . . . . . . . . 2 Matter Fused 2 | . . . . . . . 1 1 Heat Flow Errors 1 | . . . . . . . 1 . Data Loss (minor) 1 | . . . . . . . 1 . Data Loss (major) 2 | . . 2 . . . . . . Overload Shots . | . . . . . . . . . Overflow Damage . | . . . . . . . . . Projectiles . | . . . . . . . . . Explosions . | . . . . . . . . . Melee . | . . . . . . . . . Knockbacks 1 | . . . . . . 1 . . Impact . | . . . . . . . . . Kinetic 1 | . . . . . . 1 . . Secondary . | . . . . . . . . . Self-Inflicted Damage 47 | . . . . . . 6 41 . Shots . | . . . . . . . . . Rammed 37 | . . . . . . 7 30 . Targets Rammed 37 | . . . . . . 7 30 . Kicked . | . . . . . . . . . Crushed . | . . . . . . . . . Highest Temperature 204 | . 36 79 71 . . 199 204 . Average Temperature 101 | . 19 33 34 . . 134 100 . Received Heat Transfer 480 | . 36 30 72 . . 234 18 90 Siege Activations . | . . . . . . . . . Robots Corrupted . | . . . . . . . . . Combat Hostiles . | . . . . . . . . . Parts Fried . | . . . . . . . . . Impact Corruptions 1 | . . . . . . . 1 . Robots Melted . | . . . . . . . . . Combat Hostiles . | . . . . . . . . . Parts Melted 6 | . 2 3 1 . . . . . Heat Transferred 999 | . 444 259 296 . . . . . Parts Sabotaged . | . . . . . . . . . Parts Stolen . | . . . . . . . . . Parts Stripped . | . . . . . . . . . Power Chain Reactions . | . . . . . . . . . Alert | -11 -10 -9 -8 -7 -7 -6 -5 -5 ------- Run | Yrd Mat Mat Mat Fac DSF Fac Fac Ext Peak Influence 315 | . 182 250 315 142 164 241 210 107 Initial 142 | . . 24 105 142 99 86 95 102 Average 119 | . 108 94 169 142 125 157 121 101 Maximum Alert Level 1 | . . 1 1 . . 1 1 . Low Security (%) 94 | 100 100 92 60 100 100 91 93 100 Level 1 5 | . . 7 39 . . 8 6 . Level 2 . | . . . . . . . . . Level 3 . | . . . . . . . . . Level 4 . | . . . . . . . . . Level 5 . | . . . . . . . . . High Security . | . . . . . . . . . Max Security . | . . . . . . . . . Squads Dispatched 11 | . 3 2 1 . 1 3 1 . Investigation 5 | . 1 . . . . 3 1 . Extermination . | . . . . . . . . . Reinforcement 6 | . 2 2 1 . 1 . . . Assault . | . . . . . . . . . Garrison . | . . . . . . . . . Intercept . | . . . . . . . . . Searches Triggered . | . . . . . . . . . Construction Impeded . | . . . . . . . . . Haulers Reinforced . | . . . . . . . . . Active Scanning Responses . | . . . . . . . . . Cargo Convoy Interrupts . | . . . . . . . . . Stealth | -11 -10 -9 -8 -7 -7 -6 -5 -5 --------- Run | Yrd Mat Mat Mat Fac DSF Fac Fac Ext Distress Signals 1 | . . . 1 . . . . . Communications Jammed . | . . . . . . . . . Distress Signals . | . . . . . . . . . Times Spotted 78 | . 12 14 9 . 4 25 10 4 Peak Tracking Total 11 | . 4 7 7 . 3 11 6 4 Tactical Retreats 12 | . . 2 1 . 1 6 2 . Traps | -11 -10 -9 -8 -7 -7 -6 -5 -5 ------- Run | Yrd Mat Mat Mat Fac DSF Fac Fac Ext Traps Triggered 8 | . 1 1 . . . 4 2 . Indirectly . | . . . . . . . . . Trap Hack Attempts . | . . . . . . . . . Triggered . | . . . . . . . . . Disarmed . | . . . . . . . . . Reprogrammed . | . . . . . . . . . Reused . | . . . . . . . . . Traps Extracted . | . . . . . . . . . Installed . | . . . . . . . . . Triggered . | . . . . . . . . . Machines | -11 -10 -9 -8 -7 -7 -6 -5 -5 ---------- Run | Yrd Mat Mat Mat Fac DSF Fac Fac Ext Machines Disabled . | . . . . . . . . . Max in Single Turn . | . . . . . . . . . Machines Repaired . | . . . . . . . . . Machines Dismantled . | . . . . . . . . . Machines Sabotaged . | . . . . . . . . . Overloaded Fab Kills . | . . . . . . . . . Hacking | -11 -10 -9 -8 -7 -7 -6 -5 -5 --------- Run | Yrd Mat Mat Mat Fac DSF Fac Fac Ext Machines Accessed 9 | . 3 . 1 1 . 3 1 . Terminals 6 | . 3 . . 1 . 1 1 . Fabricators . | . . . . . . . . . Repair Stations 1 | . . . 1 . . . . . Recycling Units 2 | . . . . . . 2 . . Scanalyzers . | . . . . . . . . . Garrison Access . | . . . . . . . . . Total Hacks 24 | . 8 . 3 2 . 9 2 . Successful 8 | . 3 . 2 1 . 2 . . Failed 16 | . 5 . 1 1 . 7 2 . Catastrophic 2 | . 1 . . . . 1 . . Database Lockouts . | . . . . . . . . . Manual 8 | . 6 . . . . 2 . . Terminals 14 | . 8 . . 2 . 2 2 . Fabricators . | . . . . . . . . . Repair Stations 3 | . . . 3 . . . . . Recycling Units 7 | . . . . . . 7 . . Scanalyzers . | . . . . . . . . . Garrison Access . | . . . . . . . . . Terminal Hacks 2 | . 1 . . 1 . . . . Open DSF 1 | . . . . 1 . . . . Alert Level 1 | . 1 . . . . . . . Fabricator Hacks . | . . . . . . . . . Repair Station Hacks 2 | . . . 2 . . . . . Scan Component 1 | . . . 1 . . . . . Repair 1 | . . . 1 . . . . . Recycling Unit Hacks 2 | . . . . . . 2 . . Report Inventory 1 | . . . . . . 1 . . Retrieve Matter 1 | . . . . . . 1 . . Scanalyzer . | . . . . . . . . . Garrison Access Hacks . | . . . . . . . . . Unauthorized Hacks 2 | . 2 . . . . . . . Terminals 2 | . 2 . . . . . . . Assimilate 2 | . 2 . . . . . . . Fabricators . | . . . . . . . . . Repair Stations . | . . . . . . . . . Recycling Units . | . . . . . . . . . Scanalyzers . | . . . . . . . . . Garrison Access . | . . . . . . . . . Data Cores Recovered . | . . . . . . . . . Used . | . . . . . . . . . Hacking Detections 7 | . 2 . 1 . . 3 1 . Full Trace Events 3 | . . . . . . 2 1 . Feedback Events 1 | . . . . . . . 1 . Corruption 1 | . . . . . . . 1 . Feedback Blocked . | . . . . . . . . . Robot Schematics Acquired . | . . . . . . . . . Robots Built . | . . . . . . . . . Authchips . | . . . . . . . . . Time . | . . . . . . . . . Total Robot Build Rating . | . . . . . . . . . Part Schematics Acquired . | . . . . . . . . . Parts Built . | . . . . . . . . . Authchips . | . . . . . . . . . Time . | . . . . . . . . . Total Part Build Rating . | . . . . . . . . . Parts Repaired 1 | . . . 1 . . . . . Time 16 | . . . 16 . . . . . Parts Recycled . | . . . . . . . . . Recycled Matter . | . . . . . . . . . Retrieved Matter . | . . . . . . . . . Retrieved Components . | . . . . . . . . . Parts Scanalyzed . | . . . . . . . . . Part Schematics Acquired . | . . . . . . . . . Parts Damaged . | . . . . . . . . . Bothacking | -11 -10 -9 -8 -7 -7 -6 -5 -5 ------------ Run | Yrd Mat Mat Mat Fac DSF Fac Fac Ext Used RIF Installer . | . . . . . . . . . Robots Hacked . | . . . . . . . . . Non-combat . | . . . . . . . . . Combat . | . . . . . . . . . Robot Hacks Applied . | . . . . . . . . . Relay Couplers Released . | . . . . . . . . . Fabnet Peak Effective % . | . . . . . . . . . Robots Rewired . | . . . . . . . . . Allies Hacked . | . . . . . . . . . Hacks Repelled . | . . . . . . . . . Allies | -11 -10 -9 -8 -7 -7 -6 -5 -5 -------- Run | Yrd Mat Mat Mat Fac DSF Fac Fac Ext Total Allies . | . . . . . . . . . Largest Group . | . . . . . . . . . Highest-Rated Group . | . . . . . . . . . Highest-Rated Ally . | . . . . . . . . . Total Orders . | . . . . . . . . . Ally Attacks . | . . . . . . . . . Total Damage . | . . . . . . . . . Kills . | . . . . . . . . . Allies Corrupted . | . . . . . . . . . Allies Melted . | . . . . . . . . . Intel | -11 -10 -9 -8 -7 -7 -6 -5 -5 ------- Run | Yrd Mat Mat Mat Fac DSF Fac Fac Ext Robot Analysis Total . | . . . . . . . . . Derelict Logs Recovered . | . . . . . . . . . Drone Launches . | . . . . . . . . . Drone Recoveries . | . . . . . . . . . Exploration | -11 -10 -9 -8 -7 -7 -6 -5 -5 ------------- Run | Yrd Mat Mat Mat Fac DSF Fac Fac Ext Turns Passed 1516 | 76 501 112 116 69 54 292 162 134 Spaces Moved 2098 | 51 270 232 169 209 100 704 239 124 Core 248 | 26 3 . . . . 78 130 11 Treads . | . . . . . . . . . Legs 292 | 25 267 . . . . . . . Wheels 2 | . . . . . . 2 . . Hover 151 | . . . . . . . 38 113 Flight 1405 | . . 232 169 209 100 624 71 . Fastest Speed 20 | 50 120 28 28 23 22 20 35 50 Average Speed 51 | 113 140 28 28 23 23 29 47 103 Slowest Speed 250 | 200 250 28 28 23 93 200 60 200 Overloaded Moves 24 | . . . . . . 24 . . Propulsion Burnouts . | . . . . . . . . . Robots Hopped 19 | . . 4 4 . . 6 5 . Cave-ins Triggered . | . . . . . . . . . Exploration Rate (%) 27 | 4 52 26 22 5 80 25 6 24 Regions Visited 8 Branch Regions 1 Pre-discovered Areas . | . . . . . . . . . Known Exits Taken 1 | . . . . 1 . . . . Unknown Exits Taken 6 | 1 1 1 1 . . 1 1 . Scrap Searched . | . . . . . . . . . Spaces Dug . | . . . . . . . . . Terrain Destroyed . | . . . . . . . . . Melee . | . . . . . . . . . Projectile . | . . . . . . . . . AOE . | . . . . . . . . . Terrain Rammed . | . . . . . . . . . Walls Destroyed . | . . . . . . . . . Machines Disabled . | . . . . . . . . . Actions | -11 -10 -9 -8 -7 -7 -6 -5 -5 --------- Run | Yrd Mat Mat Mat Fac DSF Fac Fac Ext Total 2427 | 68 364 256 217 226 127 760 279 130 Wait 71 | . 44 4 23 . . . . . Move 2054 | 50 269 223 160 208 99 691 230 124 Hop 17 | . . 4 4 . . 6 3 . Pick Up 49 | 10 12 5 7 5 3 4 2 1 Fast Attach 14 | 2 2 . 2 . 1 4 3 . Attach 23 | 4 . 2 1 3 1 5 5 2 Detach 5 | . . . . . . 2 1 2 Swap 41 | 1 5 4 4 8 10 7 1 1 Drop 42 | 1 15 3 7 2 10 3 1 . Fire 56 | . 17 11 9 . 3 13 3 . Melee . | . . . . . . . . . Ram 37 | . . . . . . 7 30 . Kick . | . . . . . . . . . Crush . | . . . . . . . . . Escape Stasis 18 | . . . . . . 18 . . Rewire . | . . . . . . . . . Trap . | . . . . . . . . . Miscellaneous . | . . . . . . . . . Route ------- -11/Scrapyard -10/Materials -9/Materials (discovered 2 exits: *Mat / [*Min]) -8/Materials -7/Factory -7/DSF -6/Factory -5/Factory -5/Extension History --------- Turn | Location | Event 20 | -11/Scrapyard | Discovered new exit (range 15) 77 | -11/Scrapyard | Entered Materials 317 | -10/Materials | Build established: Mutant 560 | -10/Materials | Discovered new exit (range 16) 578 | -10/Materials | Entered another Materials area 578 | -9/Materials | Evolved 2 slots: Propulsion x2 586 | -9/Materials | Discovered new exit (range 5) 686 | -9/Materials | Discovered new exit (range 3) 690 | -9/Materials | Entered another Materials area 690 | -8/Materials | Evolved 2 slots: Power x1, Utility x1 719 | -8/Materials | Repaired VTOL Module 803 | -8/Materials | Discovered new exit (range 11) 806 | -8/Materials | Entered Factory 806 | -7/Factory | Evolved 2 slots: Propulsion x2 875 | -7/Factory | Identified exit to DSF 875 | -7/Factory | Entered DSF 877 | -7/DSF | Build established: Sprinter 894 | -7/DSF | Additional patrols routed to DSF 896 | -7/DSF | Discovered new exit (range 12) 929 | -7/DSF | Entered Factory 929 | -6/Factory | Evolved 2 slots: Propulsion x1, Utility x1 1173 | -6/Factory | Core integrity fell below 50% 1204 | -6/Factory | Core integrity fell below 20% 1216 | -6/Factory | Discovered new exit (range 11) 1221 | -6/Factory | Lost 14 parts (1p9n2u2w) 1221 | -6/Factory | Entered another Factory area 1221 | -5/Factory | Evolved 2 slots: Power x1, Propulsion x1 1326 | -5/Factory | Core integrity fell below 50% 1374 | -5/Factory | Discovered new exit (range 16) 1383 | -5/Factory | Entered Extension 1492 | -5/Extension | Spotted B-75 Beast 1501 | -5/Extension | Spotted B-75 Beast 1513 | -5/Extension | Core integrity fell below 20% 1517 | -5/Extension | Destroyed by B-75 Beast with Heavy Machine Gun Last Messages --------------- LOCATION=UNKNOWN GOAL=ESCAPE 01396_ UV1U2UUX 01510_ Penetrated by Slug. 01510_ Knocked back. 01512_ Penetrated by Slug. 01513_ Imp. Deuterium Engine destroyed. 01513_ Knocked back. 01514_ VTOL Module destroyed. 01514_ Slug penetrates R-10 Processor. 01515_ Acquired 6 matter. 01516_ Knocked back. Map ----- +----------------------------------------------------+ | ?????????????????????????????????????????????????? | | ?????????????????????????????????????????????????? | | ?????????????????????????????????????????????????? | | ?????????????????????????????????????????????????? | | ?????????????????????????????????????????????????? | | ?????????????????????????????????????????????????? | | ?????????????????????????????????????????????????? | | ?????????????????????????????????????????????????? | | ??????????????????????????#??????????????????????? | | ????????????????????????? #??????????????????????? | | ????????????????????????? #??##?##???????????????? | | ???????????????????????## ### ## ##??????????????? | | ??????????????????????#"" "" "??????????????? | | ??????????????????????# " " "?????????????? | | ??????????????????????# Y ????????????? | | ????????????##????????# ????????????? | | #############"######### Y ???????????? | | % u ???????????? | | % ??????????? | | ??????????? | | % BB ??????????? | | R BB BB R ?????????? | | ####################### R BB #?????????? | | ??????????????????????# #?????????? | | ??????????????????????# #?????????? | | ??????????????????????#% @ #?????????? | | ??????????????????????# #?????????? | | ??????????????????????####;#T#"""######??????????? | | ??????????????????????????##?#???????????????????? | | ?????????????????????????????????????????????????? | | | | | | | | | | | | | | | | | | | | | | | | | | | | | | | | | | | | | | | | | +----------------------------------------------------+ Best States ------------- Heat Dissipation 59 Coolant Potential 65 Energy Generation 27 Energy Capacity 510 Matter Stores 300 Matter Capacity 300 Sight Range 16 Terrain Scan Density 10 Jamming Range 14 Cloak Strength 2 Base Temperature (-) 100 Evasion (%) 73 Offensive Hacking 10 Item Schematics ----------------- None Robot Schematics ------------------ None Fabricated ------------ Nothing Alien Tech Used ----------------- None Achievements -------------- Streaker Challenges ------------ None Game ------ Seed TeslaEnergyGreatsword Manual? 0 Play Time 00:40:38 Cumulative 106.8 hours Start 2024.07.16 @ 10:56:50 End 2024.07.16 @ 12:01:35 Sessions 1 Manual Loads 0 Difficulty Rogue Special Mode None Game No. 151 Rogue 151 Adventurer 0 Explorer 0 Win Type - Total 0 Types 0/0/0/0/0/0/0/0/0 Lore% 44 Gallery% 58 Achievement% 37 Wizard Run 0 Options --------- Layout 0 ASCII 0 Keyboard 0 Movement Mouse Keybinds 0 Fullscreen 1 Font 24/Smallcaps Map View 76x50 Zoom Use 0% Tactical HUD 1 Map Filters NONE Filters NONE Steam 1 RUN: 8936b379-0500-4f55-9e5e-6c2635c007b2